Cogmind - Beta 12 @@@ ROGUE MODE // 2023.09.19 @ 21:18:03 Player: Rohain Result: Self-destructed Performance ------------- Evolutions (5) 2500 Regions Visited (9) 1800 Robots Destroyed (98) 490 Value Destroyed (4011) 4011 Prototype IDs (8) 160 Alien Tech Used (0) 0 Bonus (2604) 2604 TOTAL SCORE: 11565 Bonus ------- High Alert Combat Kills 488 Follower Combat Kills 1150 Entered DSFs 500 A7 Reached Mainframe 300 Met R17 at Cetus 500 Friendly Fire -334 Cogmind --------- Core Integrity 665/1000 Matter 290/300 Energy 310/310 System Corruption 16% Temperature Cool (0) Movement Core (950) Ox18 Location -5/Factory Parts ------- > --- POWER (2) -------- Reinforced Fission Core > --- PROPULSION (5) --- (None) > --- UTILITY (6) ------ Advanced Heat Sink Large Storage Unit Advanced Targeting Computer Advanced Targeting Computer Layered Medium Armor Plating > --- WEAPON (4) ------- Advanced KE Penetrator > --- INVENTORY (15) --- Reinforced Deuterium Engine Improved Heat Sink Advanced Heat Sink Large Storage Unit Advanced Targeting Computer Advanced Targeting Computer Experimental Propulsion Shielding Advanced Shield Generator Gatling Laser Peak State ------------ > --- POWER ------------ Fission Core Compact Particle Reactor > --- PROPULSION ------- Flexi-carbon Leg Flexi-carbon Leg Flexi-carbon Leg Flexi-carbon Leg Armored Leg > --- UTILITY ---------- Advanced Heat Sink Large Storage Unit Advanced Targeting Computer Advanced Targeting Computer Advanced Targeting Computer Medium Regenerative Plating > --- WEAPON ----------- Beamcaster Advanced Variable Charge Gun Advanced Variable Charge Gun Advanced KE Penetrator > --- INVENTORY -------- Reinforced Deuterium Engine Carbon-fiber Leg Flexi-carbon Leg Improved Heat Sink Large Storage Unit Advanced Targeting Computer Advanced Targeting Computer Experimental Propulsion Shielding Layered Medium Armor Plating Centrium Medium Armor Plating Heavy Laser Gatling Laser [Rating: 95] Favorites ----------- Power Fission Core Engine Ion Engine Power Core Fission Core Reactor Compact Particle Reactor Propulsion Flexi-carbon Leg Treads Light Treads Leg Flexi-carbon Leg Utility Advanced Targeting Computer Device Improved Heat Sink Storage Large Storage Unit Processor Advanced Targeting Computer Protection Improved Light Armor Plating Weapon Improved Medium Laser Energy Gun Improved Medium Laser Ballistic Gun Heavy Assault Rifle Build | -11 -10 -9 -8 -7 -7 -6 -6 -6 -5 ------- Run | Jun Mat Mat Mat Fac DSF Fac Ext Cet Fac Slots Evolved 10 | . . 2 2 2 . 2 . . 2 Power 1 | . . . . . . . . . 1 Propulsion 3 | . . 2 . . . 1 . . . Utility 4 | . . . 2 1 . 1 . . . Weapon 2 | . . . . 1 . . . . 1 Parts Attached 127 | 6 5 19 20 1 16 8 10 12 30 Power 14 | 1 1 3 1 . 1 1 . 2 4 Engine 8 | 1 . 3 1 . 1 . . . 2 Core 5 | . 1 . . . . 1 . 1 2 Reactor 1 | . . . . . . . . 1 . Propulsion 41 | 2 1 9 9 . 4 2 2 2 10 Treads 2 | . . 2 . . . . . . . Leg 39 | 2 1 7 9 . 4 2 2 2 10 Wheel . | . . . . . . . . . . Hover . | . . . . . . . . . . Flight . | . . . . . . . . . . Utility 32 | 1 1 1 5 . 5 2 5 3 9 Device 12 | . . . 3 . 2 1 2 . 4 Storage 2 | 1 . 1 . . . . . . . Processor 7 | . 1 . 1 . 2 . 1 2 . Hackware . | . . . . . . . . . . Protection 11 | . . . 1 . 1 1 2 1 5 Artifact . | . . . . . . . . . . Weapon 40 | 2 2 6 5 1 6 3 3 5 7 Energy Gun 35 | 1 2 4 5 1 6 3 3 5 5 Energy Cannon . | . . . . . . . . . . Ballistic Gun 5 | 1 . 2 . . . . . . 2 Ballistic Cannon . | . . . . . . . . . . Launcher . | . . . . . . . . . . Special Weapon . | . . . . . . . . . . Impact Weapon . | . . . . . . . . . . Slashing Weapon . | . . . . . . . . . . Piercing Weapon . | . . . . . . . . . . Special Melee Weapon . | . . . . . . . . . . Unidentified Prototypes 8 | . . 1 1 . . 1 . 3 2 Corrupted Parts 2 | . . . . . . . . 1 1 System Corruption 7 | . . . . . . . . 4 3 Parts Lost 46 | . . 9 2 . 3 . 3 5 24 Power 3 | . . 1 . . . . . . 2 Propulsion 22 | . . 7 1 . . . . 2 12 Utility 10 | . . . . . 3 . 2 1 4 Weapon 11 | . . 1 1 . . . 1 2 6 Highest Loss Streak 5 | . . 5 1 . 2 . 2 5 5 To Critical Strikes 2 | . . . . . . . . 2 . Average Slot Usage (%) 93 | . 99 84 100 92 90 96 99 99 87 Engine 4 | . 7 9 9 7 7 3 . . . Core 3 | . 6 1 . . . 2 6 5 4 Reactor 1 | . . . . . . . . . 5 Leg 29 | . 28 28 32 30 30 33 33 32 22 Device 9 | . . . 9 7 7 16 17 12 9 Storage 7 | . 14 11 9 7 7 6 6 6 5 Processor 10 | . 13 11 12 7 3 6 8 14 11 Protection 4 | . . . 5 7 9 6 6 5 5 Energy Gun 19 | . 18 18 18 23 23 19 19 20 17 Naked Turns . | . . . . . . . . . . Heaviest Build 80 | 12 15 31 37 39 54 51 53 54 80 Greatest Support 105 | 20 20 40 45 45 80 100 105 101 96 Greatest Overweight (x) 10 | 2 . 10 1 . . . . . 4 Average Overweight (x) . | . . . . . . . . . . Largest Inventory Capacity 15 | 8 8 15 15 15 15 15 15 15 15 Average Capacity 14 | 7 8 12 15 15 15 15 15 15 15 Most Carried 15 | 4 8 15 15 14 15 15 15 15 15 Average Carried 12 | 1 4 11 14 14 14 14 14 14 11 Final Capacity 15 | 8 8 15 15 15 15 15 15 15 15 Final Carried 15 | 2 8 15 15 14 15 15 15 15 9 Class Distribution -------------------- 32% | Scavenger-Mutant 29% | Scavenger-Gunner 15% | Gunner 10% | Mutant 6% | Commander-Gunner 4% | Tank Dominant Class ---------------- Mutant | -10/Materials Scavenger-Mutant | -9/Materials Scavenger-Mutant | -8/Materials Scavenger-Gunner | -7/Factory Tank | -7/DSF Gunner | -6/Factory Gunner | -6/Extension Scavenger-Gunner | -6/Cetus Scavenger-Gunner | -5/Factory Resources | -11 -10 -9 -8 -7 -7 -6 -6 -6 -5 ----------- Run | Jun Mat Mat Mat Fac DSF Fac Ext Cet Fac Matter Collected 1416 | 137 99 302 200 . 145 . 170 105 258 Remotely . | . . . . . . . . . . Salvage Created 5076 | . 99 633 900 . 419 . 756 259 2010 Parts 213 | . 8 38 53 . 16 . 17 11 70 Haulers Intercepted 5 | . . 2 1 . . . 1 . 1 Recyclers Shooed 8 | . . . . . . . . . 8 Parts Field Recycled . | . . . . . . . . . . Retrieved Matter . | . . . . . . . . . . Parts Self-Destructed . | . . . . . . . . . . Prevented . | . . . . . . . . . . Kills | -11 -10 -9 -8 -7 -7 -6 -6 -6 -5 ------- Run | Jun Mat Mat Mat Fac DSF Fac Ext Cet Fac Combat Hostiles Destroyed 81 | . 2 14 16 . 9 . 9 7 24 Guns 74 | . 2 13 15 . 9 . 6 7 22 AOE 3 | . . . . . . . 3 . . Classes Destroyed 14 | . 1 5 2 . 3 . 3 . . Worker 3 | . . 1 2 . . . . . . Builder 2 | . . . 1 . . . . . 1 Hauler 5 | . . 2 1 . . . 1 . 1 Recycler 6 | . . . . . . . 1 . 5 Watcher 1 | . . 1 . . . . . . . Swarmer 16 | . . 6 . . . . . 5 5 Grunt 33 | . 2 2 10 . 5 . 3 . 11 Brawler 1 | . . . . . 1 . . . . Duelist 1 | . . . . . 1 . . . . Sentry 15 | . . 6 5 . . . 4 . . Hunter 3 | . . . 1 . 1 . . . 1 Programmer 7 | . . . . . . . 1 . 6 Heavy 2 | . . . . . 1 . . . 1 Behemoth 1 | . . . . . . . 1 . . Cetus Guard 2 | . . . . . . . . 2 . Best Kill Streak 5 | . 2 4 5 . 4 . 4 4 5 Combat Bots Only 5 | . 2 4 5 . 4 . 3 4 5 Max Kills in Single Turn 4 | . 1 2 1 . 1 . 4 2 2 Gunslinging 1 | . . 1 . . . . . . 1 Exploded 3 | . . . . . . . 3 . . Melee . | . . . . . . . . . . Uniques/NPCs Destroyed . | . . . . . . . . . . Combat | -11 -10 -9 -8 -7 -7 -6 -6 -6 -5 -------- Run | Jun Mat Mat Mat Fac DSF Fac Ext Cet Fac Damage Taken 8028 | . 216 1040 912 . 771 . 666 875 3548 Core 904 | . 22 133 182 . 77 . 68 87 335 Absorbed by Shields 285 | . . . . . . . 99 186 . Redirected to Shielding 70 | . . . . . . . 70 . . Regen/Repaired (Parts) 195 | . . . . . . . . . 195 Core Remaining (%) 82 | 100 91 66 66 . 89 . . 81 . Volleys Fired 256 | . 9 48 49 . 19 . 30 18 83 Largest 4 | . 2 2 2 . 3 . 3 3 4 Hottest 309 | . 70 115 121 . 240 . 223 234 309 Shots Fired 626 | . 18 95 97 . 57 . 86 51 222 Gun 626 | . 18 95 97 . 57 . 86 51 222 Cannon . | . . . . . . . . . . Launcher . | . . . . . . . . . . Special . | . . . . . . . . . . Kinetic 28 | . 9 14 . . . . . . 5 Thermal 598 | . 9 81 97 . 57 . 86 51 217 Explosive . | . . . . . . . . . . Electromagnetic . | . . . . . . . . . . Robot Hit Streak 31 | . 9 23 14 . 12 . 20 12 31 Robot Miss Streak 4 | . 3 3 3 . 3 . 4 4 3 Penetration Max 1 | . . . . . . . . . 1 Secondary Targets 11 | . . 3 1 . . . 2 1 4 Max Gunslinging Chain 1 | . . 1 1 . . . 1 1 1 Shots Hit Robots 464 | . 14 67 71 . 47 . 61 28 176 Core Hits 218 | . 5 25 34 . 30 . 28 18 78 Critical Kills . | . . . . . . . . . . Critical Parts Destroyed 1 | . . . . . . . . . 1 Critical Strikes 28 | . . 5 7 . 2 . 7 2 5 Burn 27 | . . 5 7 . 2 . 7 2 4 Destroy 1 | . . . . . . . . . 1 Melee Attacks . | . . . . . . . . . . Impact . | . . . . . . . . . . Slashing . | . . . . . . . . . . Piercing . | . . . . . . . . . . Sneak Attacks . | . . . . . . . . . . Combat Hostiles . | . . . . . . . . . . Follow-up Attacks . | . . . . . . . . . . Damage Inflicted 10902 | . 179 970 1225 . 1098 . 1780 661 4989 Guns 10324 | . 179 970 1225 . 1098 . 1202 661 4989 Cannons . | . . . . . . . . . . Explosions 578 | . . . . . . . 578 . . Melee . | . . . . . . . . . . Ramming . | . . . . . . . . . . Kinetic 298 | . 82 99 . . . . . . 117 Thermal 10604 | . 97 871 1225 . 1098 . 1780 661 4872 Explosive . | . . . . . . . . . . Electromagnetic . | . . . . . . . . . . Impact . | . . . . . . . . . . Slashing . | . . . . . . . . . . Piercing . | . . . . . . . . . . Highest Corruption 16 | . . . . . . . . 4 16 Average Corruption 8 | . . . . . . . . 4 8 Corruption Purged . | . . . . . . . . . . Corruption Blocked . | . . . . . . . . . . Effects 18 | . . . . . . . . . 18 Message Errors 7 | . . . . . . . . . 7 Matter Fused 1 | . . . . . . . . . 1 Heat Flow Errors 1 | . . . . . . . . . 1 Energy Discharges 3 | . . . . . . . . . 3 Data Loss (minor) 1 | . . . . . . . . . 1 Data Loss (major) 1 | . . . . . . . . . 1 Alerts 1 | . . . . . . . . . 1 Misdirections 1 | . . . . . . . . . 1 Weapon Failures 2 | . . . . . . . . . 2 Overload Shots . | . . . . . . . . . . Overflow Damage . | . . . . . . . . . . Projectiles . | . . . . . . . . . . Explosions . | . . . . . . . . . . Melee . | . . . . . . . . . . Knockbacks . | . . . . . . . . . . Impact . | . . . . . . . . . . Kinetic . | . . . . . . . . . . Secondary . | . . . . . . . . . . Self-Inflicted Damage 78 | . . . . . . . 78 . . Shots 1 | . . . . . . . 1 . . Rammed . | . . . . . . . . . . Targets Rammed . | . . . . . . . . . . Kicked . | . . . . . . . . . . Crushed . | . . . . . . . . . . Highest Temperature 393 | . 183 300 279 . 340 . 181 224 393 Average Temperature 103 | . 100 109 58 . 124 . 38 48 149 Received Heat Transfer 2000 | . 120 345 513 . 279 . 138 62 543 Effects 10 | . . 5 1 . . . . . 4 Shutdowns 1 | . . . . . . . . . 1 Energy Bleed 3 | . . 2 1 . . . . . . Interference 6 | . . 3 . . . . . . 3 Siege Activations . | . . . . . . . . . . Robots Corrupted . | . . . . . . . . . . Combat Hostiles . | . . . . . . . . . . Parts Fried 2 | . . . . . . . 1 1 . Impact Corruptions . | . . . . . . . . . . Robots Melted 4 | . . 1 1 . . . . . 2 Combat Hostiles 4 | . . 1 1 . . . . . 2 Parts Melted 46 | . . 11 5 . 2 . 7 2 19 Heat Transferred 20668 | . 296 2627 3145 . 2465 . 3374 1515 7246 Parts Sabotaged . | . . . . . . . . . . Parts Stolen . | . . . . . . . . . . Parts Stripped . | . . . . . . . . . . Power Chain Reactions . | . . . . . . . . . . Missiles Intercepted . | . . . . . . . . . . Alert | -11 -10 -9 -8 -7 -7 -6 -6 -6 -5 ------- Run | Jun Mat Mat Mat Fac DSF Fac Ext Cet Fac Peak Influence 794 | . 65 198 387 175 305 177 686 794 702 Initial 444 | . . 27 45 175 125 159 . 384 444 Average 272 | . 31 104 235 175 205 173 163 629 548 Maximum Alert Level 3 | . . . 1 . 1 . 2 3 3 Low Security (%) 54 | 100 100 100 36 100 48 100 72 . . Level 1 16 | . . . 63 . 51 . 20 9 . Level 2 23 | . . . . . . . 7 27 98 Level 3 5 | . . . . . . . . 62 1 Level 4 . | . . . . . . . . . . Level 5 . | . . . . . . . . . . High Security . | . . . . . . . . . . Max Security . | . . . . . . . . . . Sterilizations 1 | . . . . . 1 . . . . Squads Dispatched 16 | . . 2 3 . 1 . 4 . 6 Investigation 4 | . . . 2 . . . 2 . . Extermination 3 | . . . . . . . . . 3 Reinforcement 9 | . . 2 1 . 1 . 2 . 3 Assault . | . . . . . . . . . . Garrison . | . . . . . . . . . . Intercept . | . . . . . . . . . . Searches Triggered . | . . . . . . . . . . Construction Impeded . | . . . . . . . . . . Haulers Reinforced 1 | . . . . . . . . . 1 Active Scanning Responses . | . . . . . . . . . . Cargo Convoy Interrupts . | . . . . . . . . . . Stealth | -11 -10 -9 -8 -7 -7 -6 -6 -6 -5 --------- Run | Jun Mat Mat Mat Fac DSF Fac Ext Cet Fac Distress Signals 7 | . . . . . . . 2 2 3 Communications Jammed . | . . . . . . . . . . Distress Signals . | . . . . . . . . . . Times Spotted 142 | . 3 22 23 . 9 . 25 22 38 Peak Tracking Total 7 | . 2 6 5 . 4 . 4 7 7 Tactical Retreats 4 | . . . 1 . . . 1 . 2 Traps | -11 -10 -9 -8 -7 -7 -6 -6 -6 -5 ------- Run | Jun Mat Mat Mat Fac DSF Fac Ext Cet Fac Traps Triggered 6 | . . . 1 . 2 1 1 . 1 Indirectly . | . . . . . . . . . . Trap Hack Attempts . | . . . . . . . . . . Triggered . | . . . . . . . . . . Disarmed . | . . . . . . . . . . Reprogrammed . | . . . . . . . . . . Reused . | . . . . . . . . . . Traps Extracted . | . . . . . . . . . . Installed . | . . . . . . . . . . Triggered . | . . . . . . . . . . Machines | -11 -10 -9 -8 -7 -7 -6 -6 -6 -5 ---------- Run | Jun Mat Mat Mat Fac DSF Fac Ext Cet Fac Machines Disabled 11 | . . . 1 . . . 6 4 . Max in Single Turn 2 | . . . 1 . . . 2 1 . Energy Cycler 1 | . . . . . . . 1 . . Machines Repaired . | . . . . . . . . . . Machines Sabotaged . | . . . . . . . . . . Overloaded Fab Kills . | . . . . . . . . . . Hacking | -11 -10 -9 -8 -7 -7 -6 -6 -6 -5 --------- Run | Jun Mat Mat Mat Fac DSF Fac Ext Cet Fac Machines Accessed 25 | . 1 3 2 2 . 3 10 3 1 Terminals 24 | . 1 3 2 2 . 3 10 3 . Fabricators . | . . . . . . . . . . Repair Stations . | . . . . . . . . . . Recycling Units 1 | . . . . . . . . . 1 Scanalyzers . | . . . . . . . . . . Garrison Access . | . . . . . . . . . . Total Hacks 49 | . 2 7 4 4 . 5 18 7 2 Successful 21 | . 1 3 2 2 . 4 7 2 . Failed 28 | . 1 4 2 2 . 1 11 5 2 Catastrophic 8 | . . . . 2 . . 2 3 1 Database Lockouts . | . . . . . . . . . . Manual 23 | . 2 7 4 3 . 3 . 2 2 Terminals 47 | . 2 7 4 4 . 5 18 7 . Fabricators . | . . . . . . . . . . Repair Stations . | . . . . . . . . . . Recycling Units 2 | . . . . . . . . . 2 Scanalyzers . | . . . . . . . . . . Garrison Access . | . . . . . . . . . . Terminal Hacks 13 | . . . 1 1 . 2 7 2 . Record 3 | . . . . . . . 1 2 . Robot Analysis 2 | . . . 1 . . 1 . . . Open Door 7 | . . . . . . 1 6 . . Open DSF 1 | . . . . 1 . . . . . Fabricator Hacks . | . . . . . . . . . . Repair Station Hacks . | . . . . . . . . . . Recycling Unit Hacks . | . . . . . . . . . . Scanalyzer . | . . . . . . . . . . Garrison Access Hacks . | . . . . . . . . . . Unauthorized Hacks 8 | . 1 3 1 1 . 2 . . . Terminals 8 | . 1 3 1 1 . 2 . . . Botnet 8 | . 1 3 1 1 . 2 . . . Fabricators . | . . . . . . . . . . Repair Stations . | . . . . . . . . . . Recycling Units . | . . . . . . . . . . Scanalyzers . | . . . . . . . . . . Garrison Access . | . . . . . . . . . . Data Cores Recovered . | . . . . . . . . . . Used . | . . . . . . . . . . Hacking Detections 21 | . 1 3 2 2 . 2 6 4 1 Full Trace Events 3 | . . . 1 . . . 2 . . Feedback Events . | . . . . . . . . . . Feedback Blocked . | . . . . . . . . . . Robot Schematics Acquired . | . . . . . . . . . . Robots Built . | . . . . . . . . . . Authchips . | . . . . . . . . . . Time . | . . . . . . . . . . Total Robot Build Rating . | . . . . . . . . . . Part Schematics Acquired . | . . . . . . . . . . Parts Built . | . . . . . . . . . . Authchips . | . . . . . . . . . . Time . | . . . . . . . . . . Total Part Build Rating . | . . . . . . . . . . Parts Repaired . | . . . . . . . . . . Time . | . . . . . . . . . . Parts Recycled . | . . . . . . . . . . Recycled Matter . | . . . . . . . . . . Retrieved Matter . | . . . . . . . . . . Retrieved Components . | . . . . . . . . . . Parts Scanalyzed . | . . . . . . . . . . Part Schematics Acquired . | . . . . . . . . . . Parts Damaged . | . . . . . . . . . . Bothacking | -11 -10 -9 -8 -7 -7 -6 -6 -6 -5 ------------ Run | Jun Mat Mat Mat Fac DSF Fac Ext Cet Fac Used RIF Installer . | . . . . . . . . . . Robots Hacked . | . . . . . . . . . . Non-combat . | . . . . . . . . . . Combat . | . . . . . . . . . . Robot Hacks Applied . | . . . . . . . . . . Relay Couplers Released . | . . . . . . . . . . Fabnet Peak Effective % . | . . . . . . . . . . Robots Rewired 4 | . . . . . . . 4 . . Allies Hacked . | . . . . . . . . . . Hacks Repelled . | . . . . . . . . . . Allies | -11 -10 -9 -8 -7 -7 -6 -6 -6 -5 -------- Run | Jun Mat Mat Mat Fac DSF Fac Ext Cet Fac Total Allies 14 | . . . . . . . 14 . . Largest Group 11 | . . . . . . . 11 10 2 Highest-Rated Group 440 | . . . . . . . 440 417 68 Highest-Rated Ally 159 | . . . . . . . 159 159 34 Total Orders . | . . . . . . . . . . Ally Attacks 215 | . . . . . . . 115 95 5 Total Damage 3874 | . . . . . . . 2257 1568 49 Kills 34 | . . . . . . . 20 13 1 Allies Corrupted . | . . . . . . . . . . Allies Melted . | . . . . . . . . . . Intel | -11 -10 -9 -8 -7 -7 -6 -6 -6 -5 ------- Run | Jun Mat Mat Mat Fac DSF Fac Ext Cet Fac Robot Analysis Total 1 | . . . 1 . . . . . . Derelict Logs Recovered . | . . . . . . . . . . Drone Launches . | . . . . . . . . . . Drone Recoveries . | . . . . . . . . . . Exploration | -11 -10 -9 -8 -7 -7 -6 -6 -6 -5 ------------- Run | Jun Mat Mat Mat Fac DSF Fac Ext Cet Fac Turns Passed 5100 | 71 177 1015 715 35 295 400 961 395 1036 Spaces Moved 2899 | 51 110 495 386 29 156 312 633 256 471 Core 8 | 7 . 1 . . . . . . . Treads 81 | . . 26 55 . . . . . . Legs 2810 | 44 110 468 331 29 156 312 633 256 471 Wheels . | . . . . . . . . . . Hover . | . . . . . . . . . . Flight . | . . . . . . . . . . Fastest Speed 50 | 50 120 120 120 120 120 120 120 120 120 Average Speed 132 | 116 120 164 126 120 120 120 120 120 146 Slowest Speed 550 | 150 120 550 190 120 120 120 120 120 400 Overloaded Moves . | . . . . . . . . . . Propulsion Burnouts . | . . . . . . . . . . Robots Hopped . | . . . . . . . . . . Cave-ins Triggered . | . . . . . . . . . . Exploration Rate (%) 40 | 5 36 49 37 1 85 9 80 87 13 Regions Visited 9 Branch Regions 2 Pre-discovered Areas . | . . . . . . . . . . Known Exits Taken 2 | . . . . 1 . . . 1 . Unknown Exits Taken 6 | 1 1 1 1 . . 1 1 . . Scrap Searched . | . . . . . . . . . . Spaces Dug . | . . . . . . . . . . Terrain Destroyed 31 | . . . . . . . 26 . 5 Melee . | . . . . . . . . . . Projectile 5 | . . . . . . . . . 5 AOE 26 | . . . . . . . 26 . . Terrain Rammed . | . . . . . . . . . . Walls Destroyed . | . . . . . . . . . . Machines Disabled . | . . . . . . . . . . Actions | -11 -10 -9 -8 -7 -7 -6 -6 -6 -5 --------- Run | Jun Mat Mat Mat Fac DSF Fac Ext Cet Fac Total 3615 | 60 134 598 527 29 220 338 772 302 635 Wait 146 | . 7 20 46 . 4 8 12 7 42 Move 2890 | 50 109 494 385 28 155 311 632 255 471 Hop . | . . . . . . . . . . Pick Up 54 | 4 4 11 9 . 8 5 4 5 4 Fast Attach 38 | 4 1 8 2 . 3 4 2 3 11 Attach 40 | 2 . 5 5 1 2 1 4 5 15 Detach 7 | . . 1 . . 1 . 1 . 4 Swap 49 | . 4 6 13 . 11 3 4 4 4 Drop 55 | . . 5 18 . 13 6 7 5 1 Fire 256 | . 9 48 49 . 19 . 30 18 83 Melee . | . . . . . . . . . . Ram . | . . . . . . . . . . Kick . | . . . . . . . . . . Crush . | . . . . . . . . . . Escape Stasis 4 | . . . . . 4 . . . . Rewire 76 | . . . . . . . 76 . . Trap . | . . . . . . . . . . Miscellaneous . | . . . . . . . . . . Route ------- -11/Junkyard -10/Materials (discovered 2 exits: *Mat / [*Min]) -9/Materials (discovered 2 exits: *Mat / [*Min]) -8/Materials -7/Factory -7/DSF -6/Factory -6/Extension (discovered 2 exits: *Fac / *Cet) -6/Cetus (discovered 3 exits: *Fac x2 / [*Arc]) -5/Factory History --------- Turn | Location | Event 5 | -11/Junkyard | Discovered new exit (range 16) 72 | -11/Junkyard | Entered Materials 72 | -10/Materials | Discovered new exit (range 8) 232 | -10/Materials | Discovered new exit (range 9) 249 | -10/Materials | Entered another Materials area 249 | -9/Materials | Evolved 2 slots: Propulsion x2 401 | -9/Materials | Lost 5 parts (1p3n1w) 896 | -9/Materials | Build established: Scavenger-Mutant 1094 | -9/Materials | Discovered new exit (range 9) 1224 | -9/Materials | Lost 3 parts (3n) 1236 | -9/Materials | Discovered new exit (range 16) 1264 | -9/Materials | Entered another Materials area 1264 | -8/Materials | Evolved 2 slots: Utility x2 1961 | -8/Materials | Discovered new exit (range 16) 1979 | -8/Materials | Entered Factory 1979 | -7/Factory | Evolved 2 slots: Utility x1, Weapon x1 2014 | -7/Factory | Identified exit to DSF 2014 | -7/Factory | Entered DSF 2051 | -7/DSF | Additional patrols routed to DSF 2165 | -7/DSF | Discovered new exit (range 14) 2260 | -7/DSF | Sterilization system engaged 2280 | -7/DSF | Ambient heat levels rising (+10) 2295 | -7/DSF | Ambient heat levels rising (+10) 2309 | -7/DSF | Entered Factory 2309 | -6/Factory | Evolved 2 slots: Propulsion x1, Utility x1 2591 | -6/Factory | Discovered new exit (range 5) 2709 | -6/Factory | Entered Extension 2757 | -6/Extension | Rescued a captive Derelict 2801 | -6/Extension | Build established: Gunner 3004 | -6/Extension | Rescued a captive Derelict 3005 | -6/Extension | Rescued a captive Derelict 3044 | -6/Extension | Rescued a captive Derelict 3045 | -6/Extension | Rescued a captive Derelict 3092 | -6/Extension | Rescued A7 3192 | -6/Extension | Build established: Commander-Gunner 3237 | -6/Extension | P-60 Hacker assimilated allied MO-QSG(g) 3334 | -6/Extension | Spotted B-75 Beast 3339 | -6/Extension | Destroyed B-75 Beast 3350 | -6/Extension | Spotted B-75 Beast 3372 | -6/Extension | Allies destroyed B-75 Beast 3459 | -6/Extension | Disrupted transfer network 3528 | -6/Extension | Rescued a captive Derelict 3529 | -6/Extension | Rescued a captive Derelict 3537 | -6/Extension | Rescued a captive Derelict 3599 | -6/Extension | Energy Cycler disabled 3600 | -6/Extension | Rescued a captive Derelict 3600 | -6/Extension | Rescued a captive Derelict 3600 | -6/Extension | Rescued a captive Derelict 3603 | -6/Extension | Rescued a captive Derelict 3604 | -6/Extension | Rescued a captive Derelict 3607 | -6/Extension | Rescued a captive Derelict 3607 | -6/Extension | Rescued a captive Derelict 3631 | -6/Extension | Discovered new exit (range 10) 3632 | -6/Extension | Discovered new exit (range 6) 3670 | -6/Extension | Entered Cetus 3670 | -6/Cetus | Accompanied by 10 allies (A7) 3675 | -6/Cetus | Acquired a Cetus Manufacturing Module code from A7 3688 | -6/Cetus | Spotted Cetus Guard 3688 | -6/Cetus | Spotted Cetus Guard 3688 | -6/Cetus | Spotted Cetus Guard 3695 | -6/Cetus | Spotted Cetus Guard 3698 | -6/Cetus | Allies destroyed Cetus Guard 3706 | -6/Cetus | Build established: Scavenger-Gunner 3707 | -6/Cetus | Allies destroyed Cetus Guard 3708 | -6/Cetus | Allies destroyed Cetus Guard 3712 | -6/Cetus | Allies destroyed Cetus Guard 3753 | -6/Cetus | Discovered new exit (range 15) 3804 | -6/Cetus | Cetus Manufacturing Module disabled 3882 | -6/Cetus | Failed to start Cetus Manufacturing Module 3914 | -6/Cetus | Escorted A7 to Cetus Mainframe 3958 | -6/Cetus | Discovered new exit (range 16) 3983 | -6/Cetus | Spotted Cetus Guard 3983 | -6/Cetus | Spotted Cetus Guard 3989 | -6/Cetus | Spotted Cetus Guard 3989 | -6/Cetus | Spotted Cetus Guard 3991 | -6/Cetus | Destroyed Cetus Guard 4005 | -6/Cetus | Discovered new exit (range 15) 4013 | -6/Cetus | Destroyed Cetus Guard 4013 | -6/Cetus | Allies destroyed Cetus Guard 4017 | -6/Cetus | Allies destroyed Cetus Guard 4026 | -6/Cetus | Extracted ID and sensor layout for unrecognized location from A7's data core 4034 | -6/Cetus | Found Prototype Protection 4044 | -6/Cetus | Met Revision 17 4050 | -6/Cetus | Lost 5 parts (2n1u2w) 4062 | -6/Cetus | Identified exit to Factory 4065 | -6/Cetus | Entered Factory 4065 | -5/Factory | Accompanied by 2 allies 4065 | -5/Factory | Evolved 2 slots: Power x1, Weapon x1 4069 | -5/Factory | Identified Med. Regenerative Plating 4448 | -5/Factory | Lost 5 parts (1p3n1w) 4593 | -5/Factory | Lost 3 parts (1n2u) 4910 | -5/Factory | System corruption reached 10% 4937 | -5/Factory | Lost 4 parts (3n1w) 5048 | -5/Factory | Lost 3 parts (1n1u1w) 5101 | -5/Factory | Self-destructed Last Messages --------------- 05091_ Slug penetrates Wall. 05091_ U-05 Engineer builds a Door. 05093_ K-01 Serf collects debris. 05094_ Penetrated by Slug. 05095_ Slug penetrates H-66 Slayer. 05095_ H-66 Slayer suffers critical hit (Destroy). 05095_ Destroyed Gauss Rifle. 05096_ K-01 Serf collects debris. 05097_ Slug penetrates H-66 Slayer. 05097_ Flexi-carbon Leg destroyed. 05097_ Penetrated by Slug. 05097_ K-01 Serf collects debris. 05097_ Penetrated by Slug. 05099_ Slug penetrates H-66 Slayer. 05100_ 6UNYMB7H<1G6K6MYK| 5 05100_ Com. Particle Reactor destroyed. 05100_ R-10 Processor collects Lgt. Ion Engine. 05100_ K-01 Serf collects debris. 05101_ Slug penetrates Wall. 05101_ Penetrated by Slug. Map ----- +----------------------------------------------------+ | ?????????" """ # %#####!""" # """" # | | ????????"" """ # % #???# """ #! """" # | | ????????"" """ + % %%#???#%""" # """" # | | ????????"" "" # #???# %/ """" # | | ????????"" "" # %% #???# ] % #% # | | ??????? # ########+######+#### | | ??????? = # % | | ??????? # % | | ?????? # % % | | ??????############ % %% | | ?????????????????# % %% % | | ?????????????????# % %###############/#### | | ?????????????????# %#?????????# % | | ?????????????????# #?????????# | | ?????????????????# u p R #?????????# | | ?????????????????# #??""?????# | | ?????????????????# p #??"""????# | | ?????????????????# #?""""????# | | ?????????????????# u %#?"""" ???# // | | ?????????????##### # """" ?# /! | | ???????????? R # """" ########## | | ???????????? Rku + #????????? | | ??????????? =%!k % # = #????????? | | ??????????? kh # "" #????????? | | ??????????? h #? """#????????? | | ???????????##+###########@ #? S"?????????? | | ???????????# # #?? """#????????? | | ???????????# # + """?????????? | | ???????????# + # ?????????? | | ???????????# # ########+#?????????? | | ???????????# # #??????????????????? | | ???????????############?# #??????????????????? | | ????????????????????????###+###??????????????????? | | ?????????????????????????? ????????????????????? | | ?????????????????????????? ???????????????????? | | ?????????????????????????? ??????????????????? | | ??????????????????????????""" ""?????????????????? | | ???????????????????????????"" """????????????????? | | ????????????????????????????" ""?????????????????? | | ?????????????????????????????? ??????????????????? | | ??????????????????????????????"??????????????????? | | ?????????????????????????????????????????????????? | | ?????????????????????????????????????????????????? | | ?????????????????????????????????????????????????? | | ?????????????????????????????????????????????????? | | ?????????????????????????????????????????????????? | | ?????????????????????????????????????????????????? | | ?????????????????????????????????????????????????? | | ?????????????????????????????????????????????????? | | ?????????????????????????????????????????????????? | +----------------------------------------------------+ Best States ------------- Heat Dissipation 83 Coolant Potential 80 Energy Generation 37 Energy Capacity 345 Matter Stores 300 Matter Capacity 300 Sight Range 16 Terrain Scan Density 10 Armor Coverage 450 Propulsion Shielding 90 Evasion (%) 55 Targeting Accuracy 24 Recoil Reduction 2 Particle Charging 15 Item Schematics ----------------- None Robot Schematics ------------------ None Fabricated ------------ Nothing Alien Tech Used ----------------- None Achievements -------------- Prison Break Project G-00 Revising The Future Challenges ------------ None Game ------ Seed SwarmNodeThermoblaster Manual? 0 Play Time 00:48:57 Cumulative 48.5 hours Start 2023.09.19 @ 10:42:59 End 2023.09.19 @ 21:18:03 Sessions 2 Manual Loads 0 Difficulty Rogue Special Mode None Game No. 76 Rogue 60 Adventurer 16 Explorer 0 Win Type - Total 1 Types 1/0/0/0/0/0/0/0/0 Lore% 31 Gallery% 50 Achievement% 45 Wizard Run 0 Options --------- ASCII 0 Keyboard 0 Movement Mouse Keybinds 0 Fullscreen 1 Font 18/SmallcapsGlow Map View 76x50 Tactical HUD 1 Map Filters NONE Filters NONE Steam 1 RUN: 0acbd6fd-6d9e-4b5f-8bbb-1ec6a7eb4fbe